[Event "Polofinale MCR junioru 2023"]
[Site "Czech Republic"]
[Date "2023.11.11"]
[Round "1.37"]
[White "Vana, Jan"]
[Black "Striz, Tadeas"]
[Result "1-0"]
[TimeControl "90 min per 40 moves + 15 min + 30 sec / move from move 1"]
[WhiteFideId "23726016"]
[BlackFideId "23723530"]
[WhiteElo "1965"]
[BlackElo "1371"]

1. e4 {[%clk 01:30:12]} {[%emt 00:00:47]} c5 {[%clk 01:30:52]} {[%emt
00:00:09]} 2. Nf3 {[%clk 01:30:15]} {[%emt 00:00:28]} d6 {[%clk 01:31:12]}
{[%emt 00:00:09]} 3. Nc3 {[%clk 01:30:09]} {[%emt 00:00:36]} Nf6 {[%clk
01:31:27]} {[%emt 00:00:14]} 4. d4 {[%clk 01:30:11]} {[%emt 00:00:29]} cxd4
{[%clk 01:31:49]} {[%emt 00:00:09]} 5. Nxd4 {[%clk 01:30:23]} {[%emt 00:00:18]}
a6 {[%clk 01:31:25]} {[%emt 00:00:54]} 6. Nb3 {[%clk 01:30:01]} {[%emt
00:00:52]} Nc6 {[%clk 01:30:53]} {[%emt 00:01:02]} 7. f3 {[%clk 01:26:13]}
{[%emt 00:04:18]} e5 {[%clk 01:26:30]} {[%emt 00:04:53]} 8. Be3 {[%clk
01:17:55]} {[%emt 00:08:47]} Be6 {[%clk 01:21:46]} {[%emt 00:05:13]} 9. Qd2
{[%clk 01:10:40]} {[%emt 00:07:45]} d5 {[%clk 01:10:30]} {[%emt 00:11:46]} 10.
exd5 {[%clk 01:07:48]} {[%emt 00:03:22]} Nxd5 {[%clk 01:09:38]} {[%emt
00:01:22]} 11. Nxd5 {[%clk 01:06:03]} {[%emt 00:02:15]} Qxd5 {[%clk 01:10:06]}
{[%emt 00:00:02]} 12. Qxd5 {[%clk 01:02:28]} {[%emt 00:04:05]} Bxd5 {[%clk
01:10:35]} {[%emt 00:00:01]} 13. O-O-O {[%clk 01:00:40]} {[%emt 00:02:18]}
O-O-O {[%clk 01:06:35]} {[%emt 00:04:29]} 14. Be2 {[%clk 00:50:13]} {[%emt
00:10:57]} Be7 {[%clk 01:00:44]} {[%emt 00:06:21]} 15. Bb6 {[%clk 00:37:57]}
{[%emt 00:12:46]} Rd7 {[%clk 00:54:29]} {[%emt 00:06:45]} 16. Nc5 {[%clk
00:32:30]} {[%emt 00:05:57]} Bxc5 {[%clk 00:40:16]} {[%emt 00:14:43]} 17. Bxc5
{[%clk 00:32:14]} {[%emt 00:00:46]} Kc7 {[%clk 00:40:45]} 18. c4 {[%clk
00:27:07]} {[%emt 00:05:38]} Be6 {[%clk 00:40:36]} {[%emt 00:00:39]} 19. Rxd7+
{[%clk 00:26:35]} {[%emt 00:01:02]} Bxd7 {[%clk 00:40:07]} {[%emt 00:00:59]} 20.
Rd1 {[%clk 00:25:26]} {[%emt 00:01:39]} b6 {[%clk 00:39:19]} {[%emt 00:01:18]}
21. Bxb6+ {[%clk 00:24:50]} {[%emt 00:01:06]} Kxb6 {[%clk 00:38:18]} {[%emt
00:01:31]} 22. Rxd7 {[%clk 00:25:13]} {[%emt 00:00:07]} Rf8 {[%clk 00:37:07]}
{[%emt 00:01:40]} 23. a3 {[%clk 00:21:31]} {[%emt 00:04:13]} Nd4 {[%clk
00:33:07]} {[%emt 00:04:30]} 24. Bd3 {[%clk 00:20:03]} {[%emt 00:01:57]} Nb3+
{[%clk 00:32:25]} {[%emt 00:01:12]} 25. Kc2 {[%clk 00:20:20]} {[%emt 00:00:14]}
Nc5 {[%clk 00:31:56]} {[%emt 00:00:59]} 26. Rd5 {[%clk 00:19:37]} {[%emt
00:01:13]} f6 {[%clk 00:30:21]} {[%emt 00:02:05]} 27. b4 {[%clk 00:19:36]}
{[%emt 00:00:30]} 1-0

[Event "Polofinale MCR junioru 2023"]
[Site "Czech Republic"]
[Date "2023.11.11"]
[Round "1.38"]
[White "Brychta, David"]
[Black "Lieber, Lukas"]
[Result "0-1"]
[TimeControl "90 min per 40 moves + 15 min + 30 sec / move from move 1"]
[WhiteFideId "23742798"]
[BlackFideId "23700688"]
[WhiteElo "1230"]
[BlackElo "1959"]

1. c4 {[%clk 01:30:58]} e6 {[%clk 01:30:14]} {[%emt 00:00:45]} 2. d4 {[%clk
01:31:19]} {[%emt 00:00:10]} Nf6 {[%clk 01:30:32]} {[%emt 00:00:10]} 3. Nf3
{[%clk 01:31:47]} {[%emt 00:00:04]} b6 {[%clk 01:30:10]} {[%emt 00:00:50]} 4.
Nc3 {[%clk 01:32:09]} {[%emt 00:00:10]} Bb4 {[%clk 01:30:26]} {[%emt 00:00:13]}
5. Bd2 {[%clk 01:32:33]} {[%emt 00:00:06]} Bb7 {[%clk 01:30:20]} {[%emt
00:00:35]} 6. e3 {[%clk 01:32:59]} {[%emt 00:00:06]} O-O {[%clk 01:30:19]}
{[%emt 00:00:28]} 7. Be2 {[%clk 01:33:25]} {[%emt 00:00:06]} d6 {[%clk
01:30:09]} {[%emt 00:00:39]} 8. O-O {[%clk 01:33:50]} {[%emt 00:00:06]} Bxc3
{[%clk 01:30:12]} {[%emt 00:00:27]} 9. Bxc3 {[%clk 01:34:15]} {[%emt 00:00:06]}
Ne4 {[%clk 01:30:29]} {[%emt 00:00:12]} 10. Qc2 {[%clk 01:33:15]} {[%emt
00:01:30]} Nd7 {[%clk 01:29:44]} {[%emt 00:01:13]} 11. Rfd1 {[%clk 01:31:15]}
{[%emt 00:02:32]} f5 {[%clk 01:28:27]} {[%emt 00:01:46]} 12. d5 {[%clk
01:30:19]} {[%emt 00:01:27]} e5 {[%clk 01:27:58]} {[%emt 00:00:58]} 13. Bd3
{[%clk 01:30:12]} {[%emt 00:00:39]} Nxc3 {[%clk 01:27:23]} {[%emt 00:01:03]} 14.
bxc3 {[%clk 01:29:30]} {[%emt 00:01:12]} e4 {[%clk 01:27:50]} {[%emt 00:00:02]}
15. Bxe4 {[%clk 01:29:55]} {[%emt 00:00:07]} fxe4 {[%clk 01:28:09]} {[%emt
00:00:10]} 16. Qxe4 {[%clk 01:30:19]} {[%emt 00:00:06]} Qf6 {[%clk 01:27:56]}
{[%emt 00:00:41]} 17. Rd4 {[%clk 01:30:22]} {[%emt 00:00:28]} Rae8 {[%clk
01:27:34]} {[%emt 00:00:51]} 18. Qg4 {[%clk 01:30:23]} {[%emt 00:00:31]} Ne5
{[%clk 01:27:36]} {[%emt 00:00:26]} 19. Qf4 {[%clk 01:29:06]} {[%emt 00:01:48]}
Qg6 {[%clk 01:26:20]} {[%emt 00:01:45]} 20. Qg3 {[%clk 01:28:05]} {[%emt
00:01:32]} Nxf3+ {[%clk 01:26:11]} {[%emt 00:00:39]} 21. gxf3 {[%clk 01:28:24]}
{[%emt 00:00:12]} Rxf3 {[%clk 01:25:55]} {[%emt 00:00:44]} 22. Qxg6 {[%clk
01:28:49]} {[%emt 00:00:08]} hxg6 {[%clk 01:26:23]} {[%emt 00:00:02]} 23. Kg2
{[%clk 01:29:17]} {[%emt 00:00:03]} Ref8 {[%clk 01:26:10]} {[%emt 00:00:41]} 24.
Rf1 {[%clk 01:29:33]} {[%emt 00:00:15]} Bc8 {[%clk 01:26:20]} {[%emt 00:00:19]}
25. Rf4 {[%clk 01:29:07]} {[%emt 00:00:58]} R8xf4 {[%clk 01:25:07]} 26. exf4
{[%clk 01:29:35]} {[%emt 00:01:45]} Rxc3 {[%clk 01:25:34]} {[%emt 00:00:03]} 27.
Re1 {[%clk 01:29:50]} {[%emt 00:00:16]} Kf7 {[%clk 01:25:33]} {[%emt 00:00:30]}
28. Re4 {[%clk 01:29:56]} {[%emt 00:00:25]} Bh3+ {[%clk 01:26:00]} {[%emt
00:00:02]} 29. Kg1 {[%clk 01:29:56]} {[%emt 00:00:30]} Rc1+ {[%clk 01:26:28]}
{[%emt 00:00:02]} 0-1

[Event "Polofinale MCR junioru 2023"]
[Site "Czech Republic"]
[Date "2023.11.11"]
[Round "1.39"]
[White "Trojan, Matyas"]
[Black "Sklar, Petr"]
[Result "1-0"]
[TimeControl "90 min per 40 moves + 15 min + 30 sec / move from move 1"]
[WhiteFideId "23710764"]
[BlackFideId "23731141"]
[WhiteElo "1957"]
[BlackElo "1160"]

1. e4 {[%clk 01:30:56]} {[%emt 00:00:04]} d6 {[%clk 01:30:52]} {[%emt
00:00:08]} 2. d4 {[%clk 01:31:13]} {[%emt 00:00:12]} Nf6 {[%clk 01:31:15]}
{[%emt 00:00:07]} 3. Nc3 {[%clk 01:31:35]} {[%emt 00:00:09]} Nbd7 {[%clk
01:31:37]} {[%emt 00:00:08]} 4. Nf3 {[%clk 01:31:45]} {[%emt 00:00:19]} e5
{[%clk 01:31:35]} {[%emt 00:00:33]} 5. Be2 {[%clk 01:29:11]} {[%emt 00:03:03]}
Be7 {[%clk 01:31:10]} {[%emt 00:00:55]} 6. Rg1 {[%clk 01:24:35]} {[%emt
00:05:06]} c6 {[%clk 01:26:15]} {[%emt 00:05:25]} 7. g4 {[%clk 01:21:19]}
{[%emt 00:03:45]} Qc7 {[%clk 01:25:26]} {[%emt 00:01:20]} 8. g5 {[%clk
01:14:24]} {[%emt 00:07:25]} Ng8 {[%clk 01:25:40]} {[%emt 00:00:16]} 9. Be3
{[%clk 01:14:32]} {[%emt 00:00:22]} Nf8 {[%clk 01:22:36]} {[%emt 00:03:34]} 10.
Qd2 {[%clk 01:13:32]} {[%emt 00:01:29]} Bd7 {[%clk 01:21:51]} {[%emt 00:01:16]}
11. O-O-O {[%clk 01:04:54]} {[%emt 00:09:09]} O-O-O {[%emt 00:04:04]} 12. dxe5
{[%clk 01:02:18]} {[%emt 00:00:27]} Be6 {[%clk 01:19:33]} {[%emt 00:01:52]} 13.
exd6 {[%clk 00:56:39]} {[%emt 00:06:09]} Bxd6 {[%clk 01:18:19]} {[%emt
00:01:43]} 14. Qd4 {[%clk 00:51:05]} {[%emt 00:06:04]} Kb8 {[%clk 01:15:12]}
{[%emt 00:03:37]} 15. Qxa7+ {[%clk 00:50:18]} {[%emt 00:01:17]} Kc8 {[%clk
01:15:22]} {[%emt 00:00:20]} 16. Bb6 {[%clk 00:50:29]} {[%emt 00:00:19]} Bf4+
{[%clk 01:14:40]} {[%emt 00:01:11]} 17. Kb1 {[%clk 00:50:54]} {[%emt 00:00:05]}
Qe7 {[%clk 01:12:04]} {[%emt 00:03:07]} 18. Qa8+ {[%clk 00:51:03]} {[%emt
00:00:20]} Bb8 {[%clk 01:12:26]} {[%emt 00:00:07]} 19. Rxd8+ {[%clk 00:51:25]}
{[%emt 00:00:09]} Qxd8 {[%clk 01:12:34]} {[%emt 00:00:22]} 20. Bxd8 {[%clk
00:51:47]} {[%emt 00:00:08]} 1-0

[Event "Polofinale MCR junioru 2023"]
[Site "Czech Republic"]
[Date "2023.11.12"]
[Round "2.1"]
[White "Jun, Rudolf"]
[Black "Jasso, Matej"]
[Result "1-0"]
[TimeControl "90 min per 40 moves + 15 min + 30 sec / move from move 1"]
[WhiteFideId "376612"]
[BlackFideId "23710748"]
[WhiteElo "2260"]
[BlackElo "2033"]

1. e4 {[%clk 01:30:28]} {[%emt 00:00:31]} c5 {[%clk 01:30:53]} {[%emt
00:00:07]} 2. Nf3 {[%clk 01:30:38]} {[%emt 00:00:20]} d6 {[%clk 01:31:14]}
{[%emt 00:00:09]} 3. Bb5+ {[%clk 01:30:50]} {[%emt 00:00:18]} Bd7 {[%clk
01:31:36]} {[%emt 00:00:09]} 4. Bxd7+ {[%clk 01:31:15]} {[%emt 00:00:05]} Qxd7
{[%clk 01:31:54]} {[%emt 00:00:13]} 5. O-O {[%clk 01:31:35]} {[%emt 00:00:10]}
Nf6 {[%clk 01:31:46]} {[%emt 00:00:37]} 6. Qe2 {[%clk 01:30:57]} {[%emt
00:01:08]} Nc6 {[%clk 01:31:14]} {[%emt 00:01:01]} 7. c3 {[%clk 01:27:59]}
{[%emt 00:03:27]} e6 {[%clk 01:30:36]} {[%emt 00:01:10]} 8. Rd1 {[%clk
01:27:27]} {[%emt 00:01:03]} Be7 {[%clk 01:30:15]} {[%emt 00:00:51]} 9. d3
{[%clk 01:26:56]} {[%emt 00:01:00]} O-O {[%clk 01:28:15]} {[%emt 00:02:29]} 10.
Nbd2 {[%clk 01:25:46]} {[%emt 00:01:40]} Ne8 {[%clk 01:17:09]} {[%emt
00:11:38]} 11. Nf1 {[%clk 01:21:45]} {[%emt 00:04:30]} b5 {[%clk 01:14:03]}
{[%emt 00:03:36]} 12. d4 {[%clk 01:21:21]} {[%emt 00:00:54]} Qb7 {[%clk
01:08:56]} {[%emt 00:05:36]} 13. d5 {[%clk 01:17:22]} {[%emt 00:04:30]} Nd8
{[%clk 01:07:26]} {[%emt 00:02:00]} 14. Ne3 {[%clk 01:15:50]} {[%emt 00:02:02]}
Nc7 {[%clk 00:54:46]} {[%emt 00:13:10]} 15. b3 {[%clk 01:10:34]} {[%emt
00:05:45]} f5 {[%clk 00:48:55]} {[%emt 00:06:22]} 16. exf5 {[%clk 01:10:38]}
{[%emt 00:00:26]} exd5 {[%clk 00:49:14]} {[%emt 00:00:12]} 17. Ng4 {[%clk
01:09:32]} {[%emt 00:01:35]} Nc6 {[%clk 00:47:22]} {[%emt 00:02:22]} 18. Qd3
{[%clk 01:07:13]} {[%emt 00:02:49]} Qc8 {[%clk 00:45:09]} {[%emt 00:02:43]} 19.
Ne3 {[%clk 01:02:32]} {[%emt 00:05:11]} Kh8 {[%clk 00:42:42]} {[%emt 00:02:57]}
20. Nxd5 {[%clk 00:57:51]} {[%emt 00:05:11]} Nxd5 {[%clk 00:42:39]} {[%emt
00:00:33]} 21. Qxd5 {[%clk 00:58:18]} {[%emt 00:00:03]} Rxf5 {[%clk 00:42:28]}
{[%emt 00:00:41]} 22. Qd3 {[%clk 00:55:59]} {[%emt 00:02:49]} Bf6 {[%clk
00:36:05]} {[%emt 00:06:52]} 23. g4 {[%clk 00:52:42]} {[%emt 00:03:48]} Ne5
{[%clk 00:31:43]} {[%emt 00:04:52]} 24. Qxf5 {[%clk 00:53:04]} {[%emt
00:00:08]} Qxf5 {[%clk 00:32:08]} {[%emt 00:00:05]} 25. gxf5 {[%clk 00:53:30]}
{[%emt 00:00:04]} Nxf3+ {[%clk 00:32:33]} {[%emt 00:00:05]} 26. Kf1 {[%clk
00:52:18]} {[%emt 00:01:40]} Bxc3 {[%clk 00:32:36]} {[%emt 00:00:29]} 27. Rb1
{[%clk 00:52:41]} {[%emt 00:00:06]} Be5 {[%clk 00:28:40]} {[%emt 00:04:26]} 28.
Rd5 {[%clk 00:44:12]} {[%emt 00:08:59]} a6 {[%clk 00:21:47]} {[%emt 00:07:23]}
29. Bb2 {[%clk 00:40:15]} {[%emt 00:04:27]} Bf4 {[%clk 00:14:34]} {[%emt
00:07:44]} 30. Kg2 {[%clk 00:39:57]} {[%emt 00:00:47]} Ng5 {[%clk 00:13:33]}
{[%emt 00:01:32]} 31. f6 {[%clk 00:37:47]} {[%emt 00:02:40]} Ne6 {[%clk
00:12:30]} {[%emt 00:01:32]} 32. Re1 {[%clk 00:36:53]} {[%emt 00:01:24]} Nc7
{[%clk 00:12:05]} {[%emt 00:00:56]} 33. Rf5 {[%clk 00:36:39]} {[%emt 00:00:43]}
Bh6 {[%clk 00:11:02]} {[%emt 00:01:34]} 34. f7 {[%clk 00:36:54]} {[%emt
00:00:15]} Rf8 {[%clk 00:11:14]} {[%emt 00:00:18]} 35. Re7 {[%clk 00:37:22]}
{[%emt 00:00:02]} 1-0

[Event "Polofinale MCR junioru 2023"]
[Site "Czech Republic"]
[Date "2023.11.12"]
[Round "2.2"]
[White "Hozda, Max"]
[Black "Hak, David"]
[Result "0-1"]
[TimeControl "90 min per 40 moves + 15 min + 30 sec / move from move 1"]
[WhiteFideId "23725958"]
[BlackFideId "377007"]
[WhiteElo "2045"]
[BlackElo "2253"]

1. d4 {[%clk 01:29:21]} {[%emt 00:01:34]} Nf6 {[%clk 01:30:58]} {[%emt
00:00:07]} 2. c4 {[%clk 01:29:23]} {[%emt 00:00:28]} e6 {[%clk 01:31:22]}
{[%emt 00:00:06]} 3. Nc3 {[%clk 01:29:37]} {[%emt 00:00:16]} Bb4 {[%clk
01:31:38]} {[%emt 00:00:13]} 4. e3 {[%clk 01:29:54]} {[%emt 00:00:14]} c5
{[%clk 01:31:54]} {[%emt 00:00:13]} 5. Nf3 {[%clk 01:28:34]} {[%emt 00:01:50]}
Nc6 {[%clk 01:30:58]} {[%emt 00:01:26]} 6. Bd3 {[%clk 01:26:32]} {[%emt
00:02:32]} Bxc3+ {[%clk 01:29:58]} {[%emt 00:01:30]} 7. bxc3 {[%clk 01:26:46]}
{[%emt 00:00:16]} d6 {[%clk 01:30:04]} {[%emt 00:00:24]} 8. O-O {[%clk
01:25:32]} {[%emt 00:01:44]} e5 {[%clk 01:25:32]} {[%emt 00:05:03]} 9. d5
{[%clk 01:22:13]} {[%emt 00:03:49]} Ne7 {[%clk 01:24:38]} {[%emt 00:01:24]} 10.
Qc2 {[%clk 01:19:30]} {[%emt 00:03:13]} O-O {[%clk 01:11:29]} {[%emt 00:13:39]}
11. Nd2 {[%clk 01:14:17]} {[%emt 00:05:43]} Ng6 {[%clk 01:08:14]} {[%emt
00:03:45]} 12. Bf5 {[%clk 00:42:25]} {[%emt 00:32:21]} Nh4 {[%clk 00:50:26]}
{[%emt 00:18:18]} 13. Bxc8 {[%clk 00:40:18]} {[%emt 00:02:37]} Qxc8 {[%clk
00:50:40]} {[%emt 00:00:16]} 14. f4 {[%clk 00:36:46]} {[%emt 00:04:02]} Qg4
{[%clk 00:41:41]} {[%emt 00:09:29]} 15. Nb3 {[%clk 00:28:05]} {[%emt 00:09:12]}
exf4 {[%clk 00:32:07]} {[%emt 00:10:03]} 16. Rxf4 {[%clk 00:26:30]} {[%emt
00:02:05]} Qh5 {[%clk 00:32:36]} {[%emt 00:00:01]} 17. Na5 {[%clk 00:21:12]}
{[%emt 00:05:48]} b6 {[%clk 00:26:20]} {[%emt 00:06:46]} 18. Nc6 {[%clk
00:18:18]} {[%emt 00:03:24]} Ng6 {[%clk 00:26:14]} {[%emt 00:00:36]} 19. e4
{[%clk 00:05:27]} {[%emt 00:13:21]} Rfe8 {[%clk 00:21:24]} {[%emt 00:05:20]} 20.
Rf5 {[%clk 00:04:31]} {[%emt 00:01:27]} Qg4 {[%clk 00:17:36]} {[%emt 00:04:17]}
21. e5 {[%clk 00:03:56]} {[%emt 00:01:05]} Qxc4 {[%clk 00:11:30]} {[%emt
00:06:36]} 22. exf6 {[%clk 00:02:50]} {[%emt 00:01:35]} Re1+ {[%clk 00:11:43]}
{[%emt 00:00:17]} 23. Kf2 {[%clk 00:03:12]} {[%emt 00:00:09]} Rf1+ {[%clk
00:11:54]} {[%emt 00:00:19]} 24. Ke3 {[%clk 00:03:26]} {[%emt 00:00:16]} Re8+
{[%clk 00:11:43]} {[%emt 00:00:41]} 25. Ne7+ {[%clk 00:03:17]} {[%emt
00:00:39]} Nxe7 {[%clk 00:11:58]} {[%emt 00:00:15]} 26. Rxf1 {[%clk 00:02:52]}
{[%emt 00:00:55]} Qxf1 {[%clk 00:12:05]} {[%emt 00:00:24]} 0-1

[Event "Polofinale MCR junioru 2023"]
[Site "Czech Republic"]
[Date "2023.11.12"]
[Round "2.3"]
[White "Mametev, Artem"]
[Black "Soucek, Petr"]
[Result "1/2-1/2"]
[TimeControl "90 min per 40 moves + 15 min + 30 sec / move from move 1"]
[WhiteFideId "23710195"]
[BlackFideId "23715170"]
[WhiteElo "2024"]
[BlackElo "2227"]

1. e4 {[%clk 01:30:46]} {[%emt 00:00:13]} c5 {[%clk 01:30:37]} {[%emt
00:00:24]} 2. Nf3 {[%clk 01:31:07]} {[%emt 00:00:07]} d6 {[%clk 01:31:00]}
{[%emt 00:00:09]} 3. d4 {[%clk 01:31:33]} {[%emt 00:00:04]} cxd4 {[%clk
01:31:28]} {[%emt 00:00:03]} 4. Nxd4 {[%clk 01:31:57]} {[%emt 00:00:04]} Nf6
{[%clk 01:31:54]} {[%emt 00:00:04]} 5. Nc3 {[%clk 01:32:22]} {[%emt 00:00:05]}
a6 {[%clk 01:32:21]} {[%emt 00:00:04]} 6. Bc4 {[%clk 01:32:42]} {[%emt
00:00:09]} e6 {[%clk 01:32:26]} {[%emt 00:00:26]} 7. Bb3 {[%clk 01:32:54]}
{[%emt 00:00:17]} Nbd7 {[%clk 01:32:46]} {[%emt 00:00:10]} 8. O-O {[%clk
01:30:54]} {[%emt 00:02:30]} Nc5 {[%clk 01:28:10]} {[%emt 00:05:06]} 9. Re1
{[%clk 01:29:58]} {[%emt 00:01:25]} Be7 {[%clk 01:27:52]} {[%emt 00:00:50]} 10.
Bg5 {[%clk 01:29:54]} {[%emt 00:00:33]} O-O {[%clk 01:26:39]} {[%emt 00:01:43]}
11. f4 {[%clk 01:30:05]} {[%emt 00:00:19]} Bd7 {[%clk 01:11:34]} {[%emt
00:15:35]} 12. e5 {[%clk 01:25:52]} {[%emt 00:04:43]} dxe5 {[%clk 01:09:57]}
{[%emt 00:02:08]} 13. fxe5 {[%clk 01:26:17]} {[%emt 00:00:05]} Nd5 {[%clk
01:09:16]} {[%emt 00:01:11]} 14. Bxe7 {[%clk 01:26:08]} {[%emt 00:00:39]} Nxe7
{[%clk 01:09:35]} {[%emt 00:00:10]} 15. Ne4 {[%clk 01:26:28]} {[%emt 00:00:09]}
Nxb3 {[%clk 01:02:21]} {[%emt 00:07:45]} 16. axb3 {[%clk 01:24:10]} {[%emt
00:02:48]} Nc6 {[%clk 01:02:20]} {[%emt 00:00:32]} 17. Nf3 {[%clk 01:18:44]}
{[%emt 00:05:55]} Qb6+ {[%clk 00:55:59]} {[%emt 00:06:51]} 18. Kh1 {[%clk
01:19:05]} {[%emt 00:00:08]} Rad8 {[%clk 00:56:09]} {[%emt 00:00:21]} 19. Nfg5
{[%clk 01:02:20]} {[%emt 00:17:15]} Nxe5 {[%clk 00:48:06]} {[%emt 00:08:34]} 20.
Qh5 {[%clk 00:48:58]} {[%emt 00:13:51]} h6 {[%clk 00:46:56]} {[%emt 00:01:40]}
21. Nf6+ {[%clk 00:49:02]} {[%emt 00:00:26]} gxf6 {[%clk 00:47:09]} {[%emt
00:00:17]} 22. Qxh6 {[%clk 00:47:42]} {[%emt 00:01:51]} fxg5 {[%clk 00:47:29]}
{[%emt 00:00:09]} 23. Rxe5 {[%clk 00:48:06]} {[%emt 00:00:06]} f6 {[%clk
00:47:51]} {[%emt 00:00:09]} 1/2-1/2

[Event "Polofinale MCR junioru 2023"]
[Site "Czech Republic"]
[Date "2023.11.12"]
[Round "2.4"]
[White "Seidl, Jan"]
[Black "Tillman, Stanislav"]
[Result "1-0"]
[TimeControl "90 min per 40 moves + 15 min + 30 sec / move from move 1"]
[WhiteFideId "23714522"]
[BlackFideId "23714247"]
[WhiteElo "2224"]
[BlackElo "2021"]

1. c4 {[%clk 01:30:56]} {[%emt 00:00:03]} Nf6 {[%clk 01:30:43]} {[%emt
00:00:17]} 2. Nc3 {[%clk 01:31:18]} {[%emt 00:00:07]} e6 {[%clk 01:30:50]}
{[%emt 00:00:24]} 3. e4 {[%clk 01:31:32]} {[%emt 00:00:16]} d6 {[%clk
01:30:12]} {[%emt 00:01:08]} 4. d4 {[%clk 01:31:33]} {[%emt 00:00:28]} Be7
{[%clk 01:30:11]} {[%emt 00:00:30]} 5. g3 {[%clk 01:31:09]} {[%emt 00:00:55]}
c5 {[%clk 01:29:38]} {[%emt 00:01:03]} 6. Nf3 {[%clk 01:13:42]} {[%emt
00:17:57]} Nbd7 {[%clk 01:22:23]} {[%emt 00:07:45]} 7. Bg2 {[%clk 01:13:04]}
{[%emt 00:01:08]} cxd4 {[%clk 01:12:58]} {[%emt 00:09:56]} 8. Nxd4 {[%clk
01:13:07]} {[%emt 00:00:27]} a6 {[%clk 01:13:00]} {[%emt 00:00:28]} 9. O-O
{[%clk 01:13:03]} {[%emt 00:00:33]} Qc7 {[%clk 01:12:20]} {[%emt 00:01:11]} 10.
b3 {[%clk 01:10:38]} {[%emt 00:02:55]} Rb8 {[%clk 01:09:52]} {[%emt 00:02:58]}
11. Bb2 {[%clk 01:06:48]} {[%emt 00:04:19]} b6 {[%clk 01:06:57]} {[%emt
00:03:26]} 12. Re1 {[%clk 01:04:04]} {[%emt 00:03:14]} Bb7 {[%clk 01:06:41]}
{[%emt 00:00:45]} 13. Nd5 {[%clk 00:50:56]} {[%emt 00:13:39]} exd5 {[%clk
01:01:58]} {[%emt 00:05:13]} 14. exd5 {[%clk 00:50:53]} {[%emt 00:00:33]} Kd8
{[%clk 00:55:40]} {[%emt 00:06:48]} 15. Nc6+ {[%clk 00:47:12]} {[%emt
00:04:11]} Bxc6 {[%clk 00:55:03]} {[%emt 00:01:07]} 16. dxc6 {[%clk 00:47:40]}
{[%emt 00:00:02]} Nc5 {[%clk 00:53:21]} {[%emt 00:02:12]} 17. b4 {[%clk
00:40:38]} {[%emt 00:07:33]} Ne6 {[%clk 00:52:12]} {[%emt 00:01:38]} 18. f4
{[%clk 00:40:37]} {[%emt 00:00:31]} g6 {[%clk 00:46:38]} {[%emt 00:06:03]} 19.
Qd3 {[%clk 00:30:31]} {[%emt 00:10:36]} Rg8 {[%clk 00:34:17]} {[%emt 00:12:52]}
20. Rad1 {[%clk 00:26:10]} {[%emt 00:04:51]} Ke8 {[%clk 00:27:56]} {[%emt
00:06:51]} 21. Bd5 {[%clk 00:23:07]} {[%emt 00:03:33]} Kf8 {[%clk 00:26:06]}
{[%emt 00:02:20]} 22. Bxe6 {[%clk 00:20:53]} {[%emt 00:02:44]} fxe6 {[%clk
00:26:27]} {[%emt 00:00:09]} 23. Rxe6 {[%clk 00:21:20]} {[%emt 00:00:02]} Kf7
{[%clk 00:24:36]} {[%emt 00:02:22]} 24. Rde1 {[%clk 00:21:33]} {[%emt
00:00:17]} Rbe8 {[%clk 00:23:31]} {[%emt 00:01:35]} 25. Qd4 {[%clk 00:21:36]}
{[%emt 00:00:27]} Ng4 {[%clk 00:16:46]} {[%emt 00:07:15]} 26. h3 {[%clk
00:19:04]} {[%emt 00:03:02]} Bd8 {[%clk 00:15:51]} {[%emt 00:01:25]} 27. Qd5
{[%clk 00:18:42]} {[%emt 00:00:52]} 1-0